{"text_format":"1","workbook":"xlsx","n_sheets":2,"sheets":["ModelSpecification","Verify"],"not_rendered":{"charts":0,"images":1,"macros":1,"external_links":1,"defined_names":14,"comments":1,"pivot_tables":0},"unopened":[],"bounds":{"document_bytes":16777216,"sheet_cells":100000,"rows_first":2000,"rows_last":500,"rows_between":2000,"halvings":0,"cell_chars":16384,"cell_head_chars":4096},"cells_cut":0,"cells_raw":0,"read":"whole","date_system":"1900"}

{"sheet":"ModelSpecification","index":0,"n_rows":33,"n_cols":16,"rows_kept":33,"cut":false,"hidden":false,"merged":[]}
["Markov PFD"]
[null,null,null,null,null,"Transition matrix"]
["Parameter","Value",null,null,"To 0",{"$f":"frmlegend(E3,Dim-1)","v":""},"","","","","","","","","",""]
["Dim",{"$f":"wsnrow(\"TransMat\",E:E)","v":1},null,"From 0",{"$f":"sumrow(1,E4:P4)","v":0}]
["Init",2,null,{"$f":"frmlegend(D4,Dim-1)","v":""},null,{"$f":"sumrow(2,E5:P5)","v":0}]
["t",730,null,"",null,null,{"$f":"sumrow(3,E6:P6)","v":0}]
["nStep",300,null,"",null,null,null,{"$f":"sumrow(4,E7:P7)","v":0}]
[null,null,null,"",null,null,null,null,{"$f":"sumrow(5,E8:P8)","v":0}]
[null,null,null,"",null,null,null,null,null,{"$f":"sumrow(6,E9:P9)","v":0}]
[null,null,null,"",null,null,null,null,null,null,{"$f":"sumrow(7,E10:P10)","v":0}]
[null,null,null,"",null,null,null,null,null,null,null,{"$f":"sumrow(8,E11:P11)","v":0}]
[null,null,null,"",null,null,null,null,null,null,null,null,{"$f":"sumrow(9,E12:P12)","v":0}]
[null,null,null,"",null,null,null,null,null,null,null,null,null,{"$f":"sumrow(10,E13:P13)","v":0}]
[null,null,null,"",null,null,null,null,null,null,null,null,null,null,{"$f":"sumrow(11,E14:P14)","v":0}]
[null,null,null,"",null,null,null,null,null,null,null,null,null,null,null,{"$f":"sumrow(12,E15:P15)","v":0}]
[]
[null,null,null,"State #","Pi(t)","Failure","Trip",null,"Text"]
[null,null,null,{"$f":"MID(D4,6,1)","v":"0"},4.1252176743000746E-4,0,0,{"$f":"(E18)*(1-F18)","v":4.1252176743000746E-4}]
[null,null,null,{"$f":"MID(D5,6,1)","v":""},1.372201181948185E-2,1,0,{"$f":"(E19)*(1-F19)","v":0}]
[null,null,null,"",0.98586684465408325,1,1,0]
[null,null,null,"",null,null,null,0]
[null,null,null,"",null,null,null,0]
[null,null,null,"",null,null,null,0]
[null,null,null,"",null,null,null,0]
[null,null,null,"",null,null,null,0]
[null,null,null,"",null,null,null,0]
[null,null,null,"",null,null,null,0]
[null,null,null,"",null,null,null,0]
[null,null,null,"",null,null,null,0]
[null,null,null,"Pr(X(t) Î F)",null,null,null,{"$f":"SUM(H18:H29)","v":4.1252176743000746E-4}]
[null,null,null,"PFD = Average Pr(X(t) Î F)",null,null,null,1.9903057545889169E-4]
[null,null,null,"PFH = Prob. of failure per hour",null,null,null,5.6553221838839818E-7]
[null,null,null,"STR = Triprate",null,null,null,1.9361410522833467E-5]

{"sheet":"Verify","index":1,"n_rows":27,"n_cols":13,"rows_kept":27,"cut":false,"hidden":false,"merged":[]}
[null,null,"Transition matrix"]
[null,"To 0","To 1","To 2","To 3","To 4","To 5","","","","","",""]
["From 0",null,{"$f":"showformula(ModelSpecification!F4)","v":""},{"$f":"showformula(ModelSpecification!G4)","v":""},{"$f":"showformula(ModelSpecification!H4)","v":""},{"$f":"showformula(ModelSpecification!I4)","v":""},{"$f":"showformula(ModelSpecification!J4)","v":""},{"$f":"showformula(ModelSpecification!K4)","v":""},{"$f":"showformula(ModelSpecification!L4)","v":""},{"$f":"showformula(ModelSpecification!M4)","v":""},{"$f":"showformula(ModelSpecification!N4)","v":""},{"$f":"showformula(ModelSpecification!O4)","v":""},{"$f":"showformula(ModelSpecification!P4)","v":""}]
["From 1",{"$f":"showformula(ModelSpecification!E5)","v":""},null,{"$f":"showformula(ModelSpecification!G5)","v":""},{"$f":"showformula(ModelSpecification!H5)","v":""},{"$f":"showformula(ModelSpecification!I5)","v":""},{"$f":"showformula(ModelSpecification!J5)","v":""},{"$f":"showformula(ModelSpecification!K5)","v":""},{"$f":"showformula(ModelSpecification!L5)","v":""},{"$f":"showformula(ModelSpecification!M5)","v":""},{"$f":"showformula(ModelSpecification!N5)","v":""},{"$f":"showformula(ModelSpecification!O5)","v":""},{"$f":"showformula(ModelSpecification!P5)","v":""}]
["From 2",{"$f":"showformula(ModelSpecification!E6)","v":""},{"$f":"showformula(ModelSpecification!F6)","v":""},null,{"$f":"showformula(ModelSpecification!H6)","v":""},{"$f":"showformula(ModelSpecification!I6)","v":""},{"$f":"showformula(ModelSpecification!J6)","v":""},{"$f":"showformula(ModelSpecification!K6)","v":""},{"$f":"showformula(ModelSpecification!L6)","v":""},{"$f":"showformula(ModelSpecification!M6)","v":""},{"$f":"showformula(ModelSpecification!N6)","v":""},{"$f":"showformula(ModelSpecification!O6)","v":""},{"$f":"showformula(ModelSpecification!P6)","v":""}]
["From 3",{"$f":"showformula(ModelSpecification!E7)","v":""},{"$f":"showformula(ModelSpecification!F7)","v":""},{"$f":"showformula(ModelSpecification!G7)","v":""},null,{"$f":"showformula(ModelSpecification!I7)","v":""},{"$f":"showformula(ModelSpecification!J7)","v":""},{"$f":"showformula(ModelSpecification!K7)","v":""},{"$f":"showformula(ModelSpecification!L7)","v":""},{"$f":"showformula(ModelSpecification!M7)","v":""},{"$f":"showformula(ModelSpecification!N7)","v":""},{"$f":"showformula(ModelSpecification!O7)","v":""},{"$f":"showformula(ModelSpecification!P7)","v":""}]
["From 4",{"$f":"showformula(ModelSpecification!E8)","v":""},{"$f":"showformula(ModelSpecification!F8)","v":""},{"$f":"showformula(ModelSpecification!G8)","v":""},{"$f":"showformula(ModelSpecification!H8)","v":""},null,{"$f":"showformula(ModelSpecification!J8)","v":""},{"$f":"showformula(ModelSpecification!K8)","v":""},{"$f":"showformula(ModelSpecification!L8)","v":""},{"$f":"showformula(ModelSpecification!M8)","v":""},{"$f":"showformula(ModelSpecification!N8)","v":""},{"$f":"showformula(ModelSpecification!O8)","v":""},{"$f":"showformula(ModelSpecification!P8)","v":""}]
["From 5",{"$f":"showformula(ModelSpecification!E9)","v":""},{"$f":"showformula(ModelSpecification!F9)","v":""},{"$f":"showformula(ModelSpecification!G9)","v":""},{"$f":"showformula(ModelSpecification!H9)","v":""},{"$f":"showformula(ModelSpecification!I9)","v":""},null,{"$f":"showformula(ModelSpecification!K9)","v":""},{"$f":"showformula(ModelSpecification!L9)","v":""},{"$f":"showformula(ModelSpecification!M9)","v":""},{"$f":"showformula(ModelSpecification!N9)","v":""},{"$f":"showformula(ModelSpecification!O9)","v":""},{"$f":"showformula(ModelSpecification!P9)","v":""}]
["",{"$f":"showformula(ModelSpecification!E10)","v":""},{"$f":"showformula(ModelSpecification!F10)","v":""},{"$f":"showformula(ModelSpecification!G10)","v":""},{"$f":"showformula(ModelSpecification!H10)","v":""},{"$f":"showformula(ModelSpecification!I10)","v":""},{"$f":"showformula(ModelSpecification!J10)","v":""},null,{"$f":"showformula(ModelSpecification!L10)","v":""},{"$f":"showformula(ModelSpecification!M10)","v":""},{"$f":"showformula(ModelSpecification!N10)","v":""},{"$f":"showformula(ModelSpecification!O10)","v":""},{"$f":"showformula(ModelSpecification!P10)","v":""}]
["",{"$f":"showformula(ModelSpecification!E11)","v":""},{"$f":"showformula(ModelSpecification!F11)","v":""},{"$f":"showformula(ModelSpecification!G11)","v":""},{"$f":"showformula(ModelSpecification!H11)","v":""},{"$f":"showformula(ModelSpecification!I11)","v":""},{"$f":"showformula(ModelSpecification!J11)","v":""},{"$f":"showformula(ModelSpecification!K11)","v":""},null,{"$f":"showformula(ModelSpecification!M11)","v":""},{"$f":"showformula(ModelSpecification!N11)","v":""},{"$f":"showformula(ModelSpecification!O11)","v":""},{"$f":"showformula(ModelSpecification!P11)","v":""}]
["",{"$f":"showformula(ModelSpecification!E12)","v":""},{"$f":"showformula(ModelSpecification!F12)","v":""},{"$f":"showformula(ModelSpecification!G12)","v":""},{"$f":"showformula(ModelSpecification!H12)","v":""},{"$f":"showformula(ModelSpecification!I12)","v":""},{"$f":"showformula(ModelSpecification!J12)","v":""},{"$f":"showformula(ModelSpecification!K12)","v":""},{"$f":"showformula(ModelSpecification!L12)","v":""},null,{"$f":"showformula(ModelSpecification!N12)","v":""},{"$f":"showformula(ModelSpecification!O12)","v":""},{"$f":"showformula(ModelSpecification!P12)","v":""}]
["",{"$f":"showformula(ModelSpecification!E13)","v":""},{"$f":"showformula(ModelSpecification!F13)","v":""},{"$f":"showformula(ModelSpecification!G13)","v":""},{"$f":"showformula(ModelSpecification!H13)","v":""},{"$f":"showformula(ModelSpecification!I13)","v":""},{"$f":"showformula(ModelSpecification!J13)","v":""},{"$f":"showformula(ModelSpecification!K13)","v":""},{"$f":"showformula(ModelSpecification!L13)","v":""},{"$f":"showformula(ModelSpecification!M13)","v":""},null,{"$f":"showformula(ModelSpecification!O13)","v":""},{"$f":"showformula(ModelSpecification!P13)","v":""}]
["",{"$f":"showformula(ModelSpecification!E14)","v":""},{"$f":"showformula(ModelSpecification!F14)","v":""},{"$f":"showformula(ModelSpecification!G14)","v":""},{"$f":"showformula(ModelSpecification!H14)","v":""},{"$f":"showformula(ModelSpecification!I14)","v":""},{"$f":"showformula(ModelSpecification!J14)","v":""},{"$f":"showformula(ModelSpecification!K14)","v":""},{"$f":"showformula(ModelSpecification!L14)","v":""},{"$f":"showformula(ModelSpecification!M14)","v":""},{"$f":"showformula(ModelSpecification!N14)","v":""},null,{"$f":"showformula(ModelSpecification!P14)","v":""}]
["",{"$f":"showformula(ModelSpecification!E15)","v":""},{"$f":"showformula(ModelSpecification!F15)","v":""},{"$f":"showformula(ModelSpecification!G15)","v":""},{"$f":"showformula(ModelSpecification!H15)","v":""},{"$f":"showformula(ModelSpecification!I15)","v":""},{"$f":"showformula(ModelSpecification!J15)","v":""},{"$f":"showformula(ModelSpecification!K15)","v":""},{"$f":"showformula(ModelSpecification!L15)","v":""},{"$f":"showformula(ModelSpecification!M15)","v":""},{"$f":"showformula(ModelSpecification!N15)","v":""},{"$f":"showformula(ModelSpecification!O15)","v":""}]
[]
["Parameter","Formula","Name"]
[{"$f":"ModelSpecification!#REF!","v":{"$error":"#REF!"}},{"$f":"showformula(ModelSpecification!#REF!)","v":{"$error":"#VALUE!"}}]
[{"$f":"ModelSpecification!#REF!","v":{"$error":"#REF!"}},{"$f":"showformula(ModelSpecification!#REF!)","v":{"$error":"#VALUE!"}}]
[{"$f":"ModelSpecification!A10","v":0},{"$f":"showformula(ModelSpecification!B13)","v":""},{"$f":"showname(ModelSpecification!#REF!)","v":{"$error":"#VALUE!"}}]
[{"$f":"ModelSpecification!#REF!","v":{"$error":"#REF!"}},{"$f":"showformula(ModelSpecification!#REF!)","v":{"$error":"#VALUE!"}},{"$f":"showname(ModelSpecification!#REF!)","v":{"$error":"#VALUE!"}}]
[{"$f":"ModelSpecification!A12","v":0},{"$f":"showformula(ModelSpecification!B12)","v":""}]
[{"$f":"ModelSpecification!A13","v":0},{"$f":"showformula(ModelSpecification!#REF!)","v":{"$error":"#VALUE!"}}]
[{"$f":"ModelSpecification!A14","v":0},{"$f":"showformula(ModelSpecification!B14)","v":""}]
[{"$f":"ModelSpecification!A15","v":0},{"$f":"showformula(ModelSpecification!B15)","v":""}]
[{"$f":"ModelSpecification!A16","v":0},{"$f":"showformula(ModelSpecification!B16)","v":""}]
[{"$f":"ModelSpecification!A17","v":0},{"$f":"showformula(ModelSpecification!B17)","v":""}]
[{"$f":"ModelSpecification!A18","v":0},{"$f":"showformula(ModelSpecification!B18)","v":""}]